[Event "Late-Titled-Tuesday-Blitz-March-19-2024"]
[Site "Chess.com"]
[Date "2024.03.19"]
[Round "2"]
[White "ViktoriyaTarasova"]
[Black "subham777"]
[Result "1-0"]
[WhiteElo "2323"]
[BlackElo "2521"]
[TimeControl "180+1"]
[EndTime "14:18:33 PDT"]
[Termination "ViktoriyaTarasova won by resignation"]

1. d4 {[%clk 0:03:00.9]} 1... d5 {[%clk 0:02:59.1]} 2. c4 {[%clk 0:03:01]} 2...
e6 {[%clk 0:02:58.3]} 3. Nc3 {[%clk 0:03:00.8]} 3... Nf6 {[%clk 0:02:55.9]} 4.
cxd5 {[%clk 0:03:00.7]} 4... exd5 {[%clk 0:02:56.5]} 5. Bg5 {[%clk 0:03:00.8]}
5... c6 {[%clk 0:02:56.7]} 6. Qc2 {[%clk 0:03:01]} 6... Bd6 {[%clk 0:02:57.1]}
7. e3 {[%clk 0:03:01.2]} 7... O-O {[%clk 0:02:57.7]} 8. Bd3 {[%clk 0:03:01.4]}
8... h6 {[%clk 0:02:58.3]} 9. Bh4 {[%clk 0:03:01.2]} 9... a5 {[%clk 0:02:58.6]}
10. Nge2 {[%clk 0:03:01.2]} 10... Na6 {[%clk 0:02:57.7]} 11. a3 {[%clk
0:03:00.4]} 11... Re8 {[%clk 0:02:56.6]} 12. h3 {[%clk 0:02:43.7]} 12... Nc7
{[%clk 0:02:55]} 13. O-O {[%clk 0:02:43.7]} 13... Ne6 {[%clk 0:02:50.8]} 14. f4
{[%clk 0:02:39.7]} 14... Nf8 {[%clk 0:02:39.6]} 15. Bf2 {[%clk 0:02:35.7]} 15...
Be6 {[%clk 0:02:34.5]} 16. Rae1 {[%clk 0:02:25.4]} 16... Rc8 {[%clk 0:02:22.7]}
17. Bh4 {[%clk 0:02:24.4]} 17... c5 {[%clk 0:02:18.9]} 18. Bb5 {[%clk
0:02:14.9]} 18... Re7 {[%clk 0:01:54]} 19. Bxf6 {[%clk 0:02:01.8]} 19... gxf6
{[%clk 0:01:51.8]} 20. f5 {[%clk 0:02:02.3]} 20... cxd4 {[%clk 0:01:45.2]} 21.
Nxd4 {[%clk 0:01:56.3]} 21... Bd7 {[%clk 0:01:41.6]} 22. Qe2 {[%clk 0:01:48.8]}
22... Bc6 {[%clk 0:01:31.4]} 23. Qh5 {[%clk 0:01:01.8]} 23... Kg7 {[%clk
0:01:25.1]} 24. Rf3 {[%clk 0:00:48.5]} 24... Nh7 {[%clk 0:01:17.4]} 25. h4
{[%clk 0:00:44.8]} 25... Bb8 {[%clk 0:01:16.2]} 26. Nce2 {[%clk 0:00:39.4]}
26... Qd6 {[%clk 0:01:00.2]} 27. Nf4 {[%clk 0:00:38.6]} 27... Rg8 {[%clk
0:00:54.8]} 28. Rg3+ {[%clk 0:00:36.2]} 28... Kh8 {[%clk 0:00:52.7]} 29. Rxg8+
{[%clk 0:00:31.9]} 29... Kxg8 {[%clk 0:00:53.1]} 30. Qxh6 {[%clk 0:00:28.4]}
30... Rxe3 {[%clk 0:00:45.7]} 31. Rxe3 {[%clk 0:00:25.9]} 31... Qxf4 {[%clk
0:00:46]} 32. Qxf4 {[%clk 0:00:21.1]} 32... Bxf4 {[%clk 0:00:46.9]} 33. Rf3
{[%clk 0:00:17.5]} 33... Bc1 {[%clk 0:00:37.1]} 34. Bxc6 {[%clk 0:00:15.5]}
34... Bxb2 {[%clk 0:00:31.3]} 35. Bxb7 {[%clk 0:00:12.6]} 35... Bxd4+ {[%clk
0:00:31]} 36. Kf1 {[%clk 0:00:13.4]} 36... Be5 {[%clk 0:00:25.9]} 37. Bxd5
{[%clk 0:00:12.7]} 37... Nf8 {[%clk 0:00:25.1]} 38. Bc6 {[%clk 0:00:12.9]} 38...
Kg7 {[%clk 0:00:23.5]} 39. a4 {[%clk 0:00:12.2]} 39... Kh6 {[%clk 0:00:19.3]}
40. g4 {[%clk 0:00:12.8]} 40... Kg7 {[%clk 0:00:18.7]} 41. Ke2 {[%clk
0:00:13.4]} 41... Nh7 {[%clk 0:00:19.3]} 42. Kd3 {[%clk 0:00:13.8]} 42... Kf8
{[%clk 0:00:19.9]} 43. Kc4 {[%clk 0:00:14]} 43... Ke7 {[%clk 0:00:19.6]} 44. Kb5
{[%clk 0:00:14.3]} 44... Kd6 {[%clk 0:00:20.2]} 45. Be8 {[%clk 0:00:13.9]} 45...
Ke7 {[%clk 0:00:19.2]} 46. Bc6 {[%clk 0:00:13.7]} 46... Kd6 {[%clk 0:00:19.7]}
47. Be4 {[%clk 0:00:14.3]} 47... Nf8 {[%clk 0:00:19.7]} 48. Kxa5 {[%clk
0:00:14.4]} 48... Nd7 {[%clk 0:00:20.2]} 49. Kb5 {[%clk 0:00:14.6]} 49... Nc5
{[%clk 0:00:19.9]} 50. Bc2 {[%clk 0:00:14.4]} 50... Nb7 {[%clk 0:00:17.1]} 51.
a5 {[%clk 0:00:14.2]} 51... Kc7 {[%clk 0:00:17.7]} 52. a6 {[%clk 0:00:14.4]}
52... Nd6+ {[%clk 0:00:18.3]} 53. Ka5 {[%clk 0:00:14.1]} 53... Bc3+ {[%clk
0:00:17.5]} 54. Rxc3+ {[%clk 0:00:13.2]} 1-0

[Event "Late-Titled-Tuesday-Blitz-March-19-2024"]
[Site "Chess.com"]
[Date "2024.03.19"]
[Round "2"]
[White "Quattroporte300"]
[Black "Mariia89"]
[Result "1-0"]
[WhiteElo "2513"]
[BlackElo "2253"]
[TimeControl "180+1"]
[EndTime "14:18:34 PDT"]
[Termination "Quattroporte300 won on time"]

1. e4 {[%clk 0:03:00.9]} 1... c6 {[%clk 0:02:59.4]} 2. d4 {[%clk 0:03:00.2]}
2... d5 {[%clk 0:02:59.9]} 3. Nc3 {[%clk 0:03:00.6]} 3... dxe4 {[%clk
0:03:00.1]} 4. Nxe4 {[%clk 0:03:00.9]} 4... Nf6 {[%clk 0:03:01]} 5. Nxf6+ {[%clk
0:03:00.3]} 5... exf6 {[%clk 0:03:01.9]} 6. c3 {[%clk 0:03:00.9]} 6... Be7
{[%clk 0:03:02.5]} 7. Bd3 {[%clk 0:03:01.6]} 7... Na6 {[%clk 0:03:03.1]} 8. Qc2
{[%clk 0:03:00.4]} 8... Nc7 {[%clk 0:03:01.7]} 9. Ne2 {[%clk 0:02:58.7]} 9...
Be6 {[%clk 0:03:01.9]} 10. Bd2 {[%clk 0:02:55.1]} 10... Nd5 {[%clk 0:03:01.6]}
11. O-O-O {[%clk 0:02:53.9]} 11... h5 {[%clk 0:02:59.4]} 12. Kb1 {[%clk
0:02:53.9]} 12... a5 {[%clk 0:02:57.7]} 13. f4 {[%clk 0:02:49.5]} 13... Qd7
{[%clk 0:02:51.7]} 14. f5 {[%clk 0:02:45.7]} 14... Bxf5 {[%clk 0:02:35.4]} 15.
Bxf5 {[%clk 0:02:46.6]} 15... Qc7 {[%clk 0:02:35.5]} 16. c4 {[%clk 0:02:42.6]}
16... Nb4 {[%clk 0:02:34.1]} 17. Qe4 {[%clk 0:02:37.6]} 17... Kf8 {[%clk
0:02:28.7]} 18. a3 {[%clk 0:02:31.2]} 18... Na6 {[%clk 0:02:22.6]} 19. Bf4
{[%clk 0:02:30]} 19... Qb6 {[%clk 0:02:21.6]} 20. c5 {[%clk 0:02:23.7]} 20...
Qb3 {[%clk 0:02:19.5]} 21. Qd3 {[%clk 0:02:23.5]} 21... Qd5 {[%clk 0:02:18.7]}
22. Be4 {[%clk 0:02:21.6]} 22... Qd7 {[%clk 0:02:18.1]} 23. Nc3 {[%clk
0:02:16.1]} 23... g5 {[%clk 0:02:10.2]} 24. Bf5 {[%clk 0:02:14.3]} 24... Qd8
{[%clk 0:02:06.9]} 25. Bc1 {[%clk 0:02:08.6]} 25... Kg7 {[%clk 0:01:51.4]} 26.
h4 {[%clk 0:02:07.8]} 26... g4 {[%clk 0:01:50.3]} 27. Rhe1 {[%clk 0:02:07.7]}
27... b6 {[%clk 0:01:42]} 28. cxb6 {[%clk 0:01:57]} 28... Bd6 {[%clk 0:01:34.2]}
29. Ne4 {[%clk 0:01:52.5]} 29... Bf8 {[%clk 0:01:23]} 30. b7 {[%clk 0:01:27.9]}
30... Ra7 {[%clk 0:01:18]} 31. Nc5 {[%clk 0:01:28]} 31... Nc7 {[%clk 0:00:56.6]}
32. Qb3 {[%clk 0:01:20.9]} 32... Bd6 {[%clk 0:00:43.3]} 33. Nd7 {[%clk
0:01:17.8]} 33... Nd5 {[%clk 0:00:40.7]} 34. Nc5 {[%clk 0:01:02]} 34... Qc7
{[%clk 0:00:36.6]} 35. Be6 {[%clk 0:00:55.3]} 35... Nb6 {[%clk 0:00:27]} 36.
Bxf7 {[%clk 0:00:46.1]} 36... Qxf7 {[%clk 0:00:20.9]} 37. Qxb6 {[%clk
0:00:42.3]} 37... Bxc5 {[%clk 0:00:14.8]} 38. Qxc5 {[%clk 0:00:28.3]} 38... Rxb7
{[%clk 0:00:15]} 39. Ka1 {[%clk 0:00:28.4]} 39... Rhb8 {[%clk 0:00:14]} 40. Re2
{[%clk 0:00:24.2]} 40... Rb3 {[%clk 0:00:13.6]} 41. Re7 {[%clk 0:00:20.5]} 41...
Qxe7 {[%clk 0:00:04.4]} 42. Qxe7+ {[%clk 0:00:20.8]} 42... Kg6 {[%clk
0:00:05.3]} 43. Qe4+ {[%clk 0:00:21.3]} 43... Kf7 {[%clk 0:00:05.3]} 44. Qxc6
{[%clk 0:00:20.6]} 44... R8b6 {[%clk 0:00:03]} 45. Qc4+ {[%clk 0:00:20.2]} 45...
Kg6 {[%clk 0:00:02.9]} 46. d5 {[%clk 0:00:20.5]} 1-0

[Event "Late-Titled-Tuesday-Blitz-March-19-2024"]
[Site "Chess.com"]
[Date "2024.03.19"]
[Round "2"]
[White "Rodalquilar"]
[Black "Baronessa08"]
[Result "0-1"]
[WhiteElo "2774"]
[BlackElo "2590"]
[TimeControl "180+1"]
[EndTime "14:18:35 PDT"]
[Termination "Baronessa08 won on time"]

1. d4 {[%clk 0:03:00.9]} 1... d5 {[%clk 0:02:59.5]} 2. Nf3 {[%clk 0:03:01.1]}
2... Nf6 {[%clk 0:02:59.3]} 3. Bf4 {[%clk 0:03:01.4]} 3... e6 {[%clk 0:02:56.9]}
4. e3 {[%clk 0:03:01.6]} 4... c5 {[%clk 0:02:57.1]} 5. Nbd2 {[%clk 0:02:59.7]}
5... Nc6 {[%clk 0:02:57.1]} 6. c3 {[%clk 0:02:59.9]} 6... cxd4 {[%clk
0:02:51.8]} 7. exd4 {[%clk 0:02:59.5]} 7... Nh5 {[%clk 0:02:51.8]} 8. Be3 {[%clk
0:02:58.3]} 8... Bd6 {[%clk 0:02:51.8]} 9. Ne5 {[%clk 0:02:57.1]} 9... g6 {[%clk
0:02:49.2]} 10. Nd3 {[%clk 0:02:56.7]} 10... O-O {[%clk 0:02:45.1]} 11. g3
{[%clk 0:02:56.6]} 11... e5 {[%clk 0:02:22.1]} 12. dxe5 {[%clk 0:02:53.2]} 12...
Nxe5 {[%clk 0:02:22.3]} 13. Nxe5 {[%clk 0:02:53.6]} 13... Bxe5 {[%clk
0:02:23.1]} 14. Nb3 {[%clk 0:02:24.7]} 14... Nf6 {[%clk 0:02:15.3]} 15. Bg2
{[%clk 0:02:13.1]} 15... Ng4 {[%clk 0:02:02.8]} 16. Bd4 {[%clk 0:02:13.2]} 16...
Bxd4 {[%clk 0:01:56.2]} 17. Qxd4 {[%clk 0:02:13.5]} 17... Re8+ {[%clk
0:01:52.7]} 18. Kf1 {[%clk 0:02:14]} 18... Be6 {[%clk 0:01:25.6]} 19. h3 {[%clk
0:02:13.2]} 19... Nh6 {[%clk 0:01:21.3]} 20. g4 {[%clk 0:01:56.4]} 20... Rc8
{[%clk 0:01:20.7]} 21. Nd2 {[%clk 0:01:52.2]} 21... f5 {[%clk 0:01:12.5]} 22.
Qf4 {[%clk 0:01:41.2]} 22... Nf7 {[%clk 0:01:09.4]} 23. Rd1 {[%clk 0:01:09.8]}
23... Qa5 {[%clk 0:01:05.1]} 24. Kg1 {[%clk 0:00:52.8]} 24... Qxa2 {[%clk
0:01:01.2]} 25. gxf5 {[%clk 0:00:52.6]} 25... Bxf5 {[%clk 0:01:01.1]} 26. Nf1
{[%clk 0:00:48.3]} 26... Be4 {[%clk 0:00:58.9]} 27. Ne3 {[%clk 0:00:45.1]} 27...
Bxg2 {[%clk 0:00:47.2]} 28. Kxg2 {[%clk 0:00:45.5]} 28... Re4 {[%clk 0:00:46.2]}
29. Qf3 {[%clk 0:00:30.4]} 29... Ne5 {[%clk 0:00:36.9]} 30. Qf6 {[%clk
0:00:28.9]} 30... Nd7 {[%clk 0:00:18.8]} 31. Qd6 {[%clk 0:00:28.7]} 31... Nb6
{[%clk 0:00:17]} 32. Rhe1 {[%clk 0:00:09.8]} 32... Ree8 {[%clk 0:00:16.4]} 33.
Nxd5 {[%clk 0:00:05.7]} 33... Nxd5 {[%clk 0:00:15.7]} 34. Rxe8+ {[%clk
0:00:05.9]} 34... Rxe8 {[%clk 0:00:15.5]} 35. Qxd5+ {[%clk 0:00:06.6]} 35...
Qxd5+ {[%clk 0:00:15.1]} 36. Rxd5 {[%clk 0:00:07.5]} 36... Re7 {[%clk 0:00:14]}
37. c4 {[%clk 0:00:06]} 37... Kf7 {[%clk 0:00:13.7]} 38. b4 {[%clk 0:00:06.5]}
38... Ke6 {[%clk 0:00:13.3]} 39. Kf3 {[%clk 0:00:06.3]} 39... Rd7 {[%clk
0:00:13.1]} 40. Rc5 {[%clk 0:00:03.1]} 40... b6 {[%clk 0:00:12.7]} 41. Rc8
{[%clk 0:00:03.1]} 41... Kd6 {[%clk 0:00:11.4]} 42. Ke4 {[%clk 0:00:01.5]} 42...
Re7+ {[%clk 0:00:07.6]} 43. Kd4 {[%clk 0:00:01.7]} 43... Rf7 {[%clk 0:00:07.9]}
0-1

[Event "Late-Titled-Tuesday-Blitz-March-19-2024"]
[Site "Chess.com"]
[Date "2024.03.19"]
[Round "2"]
[White "VladimirKramnik"]
[Black "stolencandy13"]
[Result "1-0"]
[WhiteElo "3001"]
[BlackElo "2551"]
[TimeControl "180+1"]
[EndTime "14:18:37 PDT"]
[Termination "VladimirKramnik won on time"]

1. e4 {[%clk 0:03:00.9]} 1... c6 {[%clk 0:02:53.6]} 2. d4 {[%clk 0:02:59.3]}
2... d5 {[%clk 0:02:54.3]} 3. Nd2 {[%clk 0:02:58.3]} 3... dxe4 {[%clk
0:02:54.6]} 4. Nxe4 {[%clk 0:02:58.9]} 4... Bf5 {[%clk 0:02:55.4]} 5. Ng3 {[%clk
0:02:58.6]} 5... Bg6 {[%clk 0:02:56.1]} 6. h4 {[%clk 0:02:58.8]} 6... h6 {[%clk
0:02:56.3]} 7. Nf3 {[%clk 0:02:58.9]} 7... Nd7 {[%clk 0:02:56.2]} 8. h5 {[%clk
0:02:58.3]} 8... Bh7 {[%clk 0:02:56.7]} 9. Bd3 {[%clk 0:02:58.9]} 9... Bxd3
{[%clk 0:02:57.3]} 10. Qxd3 {[%clk 0:02:59.3]} 10... e6 {[%clk 0:02:58.2]} 11.
Bd2 {[%clk 0:02:59]} 11... Ngf6 {[%clk 0:02:58.6]} 12. O-O-O {[%clk 0:02:59.2]}
12... Be7 {[%clk 0:02:59.3]} 13. Ne4 {[%clk 0:02:56.5]} 13... Nxe4 {[%clk
0:02:59.6]} 14. Qxe4 {[%clk 0:02:56]} 14... Nf6 {[%clk 0:03:00.5]} 15. Qe2
{[%clk 0:02:55.8]} 15... Qd5 {[%clk 0:02:52.1]} 16. Kb1 {[%clk 0:02:55.4]} 16...
Qe4 {[%clk 0:02:52.4]} 17. Qxe4 {[%clk 0:02:39.3]} 17... Nxe4 {[%clk 0:02:53.3]}
18. Be3 {[%clk 0:02:34.3]} 18... O-O {[%clk 0:02:50.5]} 19. c4 {[%clk 0:02:21]}
19... Rfd8 {[%clk 0:02:41.5]} 20. Kc2 {[%clk 0:02:18.1]} 20... Bf6 {[%clk
0:02:29.8]} 21. g4 {[%clk 0:02:12]} 21... b5 {[%clk 0:02:25.2]} 22. b3 {[%clk
0:01:46.8]} 22... a5 {[%clk 0:02:25.4]} 23. Ne5 {[%clk 0:01:43.2]} 23... bxc4
{[%clk 0:01:36.4]} 24. bxc4 {[%clk 0:01:40.3]} 24... c5 {[%clk 0:01:36.8]} 25.
f4 {[%clk 0:01:23.4]} 25... cxd4 {[%clk 0:01:31.5]} 26. Rxd4 {[%clk 0:01:22]}
26... Rxd4 {[%clk 0:01:17.5]} 27. Bxd4 {[%clk 0:01:22.5]} 27... Rc8 {[%clk
0:01:09.1]} 28. Kd3 {[%clk 0:01:14]} 28... Bxe5 {[%clk 0:01:04.8]} 29. fxe5
{[%clk 0:00:57.8]} 29... Ng5 {[%clk 0:00:57.3]} 30. Rf1 {[%clk 0:00:54.3]} 30...
Rd8 {[%clk 0:00:34.7]} 31. Ke3 {[%clk 0:00:45.4]} 31... Kf8 {[%clk 0:00:25.3]}
32. Bb6 {[%clk 0:00:44.4]} 32... Rc8 {[%clk 0:00:22.1]} 33. c5 {[%clk 0:00:41]}
33... Ke7 {[%clk 0:00:21]} 34. Rf4 {[%clk 0:00:37.8]} 34... f6 {[%clk
0:00:19.8]} 35. exf6+ {[%clk 0:00:36.4]} 35... gxf6 {[%clk 0:00:20.7]} 36. Ra4
{[%clk 0:00:35.7]} 36... Ra8 {[%clk 0:00:18.1]} 37. Rxa5 {[%clk 0:00:34.5]}
37... Rxa5 {[%clk 0:00:14.8]} 38. Bxa5 {[%clk 0:00:35]} 38... Kd7 {[%clk
0:00:14.9]} 39. a4 {[%clk 0:00:25.7]} 39... Kc6 {[%clk 0:00:13.1]} 40. Bd8
{[%clk 0:00:24.7]} 40... Nf7 {[%clk 0:00:11.8]} 41. Bxf6 {[%clk 0:00:23.6]}
41... Kxc5 {[%clk 0:00:12.3]} 42. Be7+ {[%clk 0:00:22.3]} 42... Kd5 {[%clk
0:00:06.7]} 43. a5 {[%clk 0:00:20.5]} 43... Ne5 {[%clk 0:00:07]} 44. a6 {[%clk
0:00:20]} 44... Nxg4+ {[%clk 0:00:04.9]} 45. Ke2 {[%clk 0:00:18]} 45... Kc6
{[%clk 0:00:04.6]} 46. Kf3 {[%clk 0:00:11]} 46... Ne5+ {[%clk 0:00:04.8]} 47.
Ke4 {[%clk 0:00:10.6]} 47... Nd7 {[%clk 0:00:03.4]} 48. Bd8 {[%clk 0:00:06.8]}
1-0

[Event "Late-Titled-Tuesday-Blitz-March-19-2024"]
[Site "Chess.com"]
[Date "2024.03.19"]
[Round "2"]
[White "wallowss"]
[Black "prochn"]
[Result "1-0"]
[WhiteElo "2142"]
[BlackElo "2444"]
[TimeControl "180+1"]
[EndTime "14:18:37 PDT"]
[Termination "wallowss won on time"]

1. d4 {[%clk 0:03:00.9]} 1... d5 {[%clk 0:02:59.4]} 2. c4 {[%clk 0:03:01.2]}
2... c6 {[%clk 0:02:59.4]} 3. Nf3 {[%clk 0:03:00.2]} 3... Nf6 {[%clk 0:02:58.9]}
4. g3 {[%clk 0:02:57.2]} 4... Bf5 {[%clk 0:02:57.9]} 5. Bg2 {[%clk 0:02:57.5]}
5... h6 {[%clk 0:02:58]} 6. O-O {[%clk 0:02:58]} 6... e6 {[%clk 0:02:58.2]} 7.
b3 {[%clk 0:02:58.3]} 7... Be7 {[%clk 0:02:57.8]} 8. Bb2 {[%clk 0:02:58.6]} 8...
O-O {[%clk 0:02:58.1]} 9. Nc3 {[%clk 0:02:59.2]} 9... Nbd7 {[%clk 0:02:58.1]}
10. Nd2 {[%clk 0:02:57.2]} 10... Bg6 {[%clk 0:02:20.8]} 11. Rc1 {[%clk
0:02:52.2]} 11... Qa5 {[%clk 0:02:12.7]} 12. a3 {[%clk 0:02:51.9]} 12... Rad8
{[%clk 0:01:54.3]} 13. b4 {[%clk 0:02:51.2]} 13... Qb6 {[%clk 0:01:43.1]} 14. c5
{[%clk 0:02:51.3]} 14... Qc7 {[%clk 0:01:43.3]} 15. Qb3 {[%clk 0:02:46.3]} 15...
e5 {[%clk 0:01:41.6]} 16. e3 {[%clk 0:02:44.5]} 16... a6 {[%clk 0:01:35.9]} 17.
a4 {[%clk 0:02:38.7]} 17... exd4 {[%clk 0:01:16.5]} 18. exd4 {[%clk 0:02:39.6]}
18... h5 {[%clk 0:01:10.4]} 19. Rfe1 {[%clk 0:02:29.3]} 19... Rfe8 {[%clk
0:01:09.6]} 20. b5 {[%clk 0:02:22.5]} 20... axb5 {[%clk 0:01:08.9]} 21. axb5
{[%clk 0:02:23.4]} 21... h4 {[%clk 0:01:09.3]} 22. Nf3 {[%clk 0:02:18.5]} 22...
hxg3 {[%clk 0:01:05.9]} 23. hxg3 {[%clk 0:02:19.4]} 23... Ng4 {[%clk 0:01:03.8]}
24. b6 {[%clk 0:02:01]} 24... Qb8 {[%clk 0:01:00.8]} 25. Ne2 {[%clk 0:01:57.3]}
25... Ndf6 {[%clk 0:00:58.7]} 26. Nf4 {[%clk 0:01:56.9]} 26... Be4 {[%clk
0:00:57.6]} 27. Ne5 {[%clk 0:01:54.7]} 27... Bxg2 {[%clk 0:00:48.4]} 28. Kxg2
{[%clk 0:01:55.6]} 28... Nxe5 {[%clk 0:00:48.2]} 29. dxe5 {[%clk 0:01:51.1]}
29... Ne4 {[%clk 0:00:45.8]} 30. Bd4 {[%clk 0:01:46.7]} 30... Bf8 {[%clk
0:00:37.2]} 31. Rh1 {[%clk 0:01:47]} 31... Rxe5 {[%clk 0:00:34.8]} 32. Bxe5
{[%clk 0:01:36.5]} 32... Qxe5 {[%clk 0:00:35.7]} 33. Qf3 {[%clk 0:01:36.9]}
33... Bxc5 {[%clk 0:00:32.8]} 34. Rh5 {[%clk 0:01:28.8]} 34... Ng5 {[%clk
0:00:25.6]} 35. Rxg5 {[%clk 0:01:16.5]} 35... Qxg5 {[%clk 0:00:26.5]} 36. Rxc5
{[%clk 0:01:16.3]} 36... Re8 {[%clk 0:00:26.4]} 37. Rc1 {[%clk 0:01:07.5]} 37...
Qd8 {[%clk 0:00:25.3]} 38. Rh1 {[%clk 0:01:03.2]} 38... g6 {[%clk 0:00:11.6]}
39. Qg4 {[%clk 0:00:47.3]} 39... Qf6 {[%clk 0:00:10.1]} 40. Nh5 {[%clk
0:00:45.1]} 40... Qe5 {[%clk 0:00:08.5]} 41. Nf4 {[%clk 0:00:39.8]} 41... Qe4+
{[%clk 0:00:07.8]} 42. Qf3 {[%clk 0:00:30.1]} 42... Qd4 {[%clk 0:00:08.1]} 43.
Qg4 {[%clk 0:00:11.3]} 43... Ra8 {[%clk 0:00:03.4]} 44. Qh4 {[%clk 0:00:11.1]}
1-0

[Event "Late-Titled-Tuesday-Blitz-March-19-2024"]
[Site "Chess.com"]
[Date "2024.03.19"]
[Round "2"]
[White "YurasovMat-2012"]
[Black "Zhigalko_Sergei"]
[Result "0-1"]
[WhiteElo "2613"]
[BlackElo "2884"]
[TimeControl "180+1"]
[EndTime "14:18:38 PDT"]
[Termination "Zhigalko_Sergei won on time"]

1. e4 {[%clk 0:03:00.9]} 1... b5 {[%clk 0:02:58.5]} 2. Nf3 {[%clk 0:02:56.4]}
2... Bb7 {[%clk 0:02:57.9]} 3. d3 {[%clk 0:02:54.4]} 3... e6 {[%clk 0:02:52.1]}
4. Nbd2 {[%clk 0:02:53.7]} 4... Nf6 {[%clk 0:02:47.3]} 5. Be2 {[%clk 0:02:53.2]}
5... d5 {[%clk 0:02:46]} 6. e5 {[%clk 0:02:51.4]} 6... Nfd7 {[%clk 0:02:45.9]}
7. O-O {[%clk 0:02:51.2]} 7... c5 {[%clk 0:02:45.8]} 8. c3 {[%clk 0:02:49.2]}
8... Nc6 {[%clk 0:02:42.2]} 9. d4 {[%clk 0:02:48.9]} 9... b4 {[%clk 0:02:42.8]}
10. Re1 {[%clk 0:02:41]} 10... Qa5 {[%clk 0:02:24.1]} 11. Qb3 {[%clk 0:02:24.3]}
11... Ba6 {[%clk 0:02:18.1]} 12. Bxa6 {[%clk 0:02:15.4]} 12... Qxa6 {[%clk
0:02:18]} 13. Nf1 {[%clk 0:02:12.5]} 13... Rb8 {[%clk 0:02:16]} 14. Qd1 {[%clk
0:02:09.4]} 14... bxc3 {[%clk 0:01:53.6]} 15. bxc3 {[%clk 0:02:10.3]} 15... cxd4
{[%clk 0:01:51.8]} 16. cxd4 {[%clk 0:02:09.9]} 16... Bb4 {[%clk 0:01:50.2]} 17.
Bd2 {[%clk 0:02:05.2]} 17... O-O {[%clk 0:01:29.5]} 18. a3 {[%clk 0:01:47.5]}
18... Bxd2 {[%clk 0:01:20.1]} 19. N1xd2 {[%clk 0:01:47]} 19... Rb2 {[%clk
0:01:14]} 20. Nf1 {[%clk 0:01:29.1]} 20... Rfb8 {[%clk 0:01:06.4]} 21. Ne3
{[%clk 0:01:28]} 21... R8b3 {[%clk 0:00:53.4]} 22. Qc1 {[%clk 0:01:12]} 22...
Nf8 {[%clk 0:00:36.8]} 23. Nd1 {[%clk 0:01:06.5]} 23... Qb6 {[%clk 0:00:12.3]}
24. Nxb2 {[%clk 0:01:02]} 24... Rxb2 {[%clk 0:00:13.2]} 25. Qc3 {[%clk
0:00:56.8]} 25... Rb3 {[%clk 0:00:11.7]} 26. Qd2 {[%clk 0:00:51]} 26... Rb2
{[%clk 0:00:11.2]} 27. Qd3 {[%clk 0:00:33.3]} 27... Rb3 {[%clk 0:00:10.1]} 28.
Qd1 {[%clk 0:00:22]} 28... Na5 {[%clk 0:00:07.5]} 29. Nd2 {[%clk 0:00:17.8]}
29... Rd3 {[%clk 0:00:06.4]} 30. Qc2 {[%clk 0:00:08.2]} 30... Rxd4 {[%clk
0:00:06.4]} 31. Nf3 {[%clk 0:00:06.9]} 31... Rc4 {[%clk 0:00:06.3]} 32. Qe2
{[%clk 0:00:06.7]} 32... h6 {[%clk 0:00:05.1]} 33. Rab1 {[%clk 0:00:06.7]} 33...
Qc7 {[%clk 0:00:05.5]} 34. Nd2 {[%clk 0:00:05.7]} 34... Rc3 {[%clk 0:00:05.6]}
35. a4 {[%clk 0:00:04.1]} 35... Nc6 {[%clk 0:00:05.5]} 36. Nf3 {[%clk
0:00:03.4]} 36... a5 {[%clk 0:00:04.2]} 37. Qd2 {[%clk 0:00:03.5]} 37... Nb4
{[%clk 0:00:04.4]} 38. Nd4 {[%clk 0:00:02.3]} 38... Rd3 {[%clk 0:00:04.3]} 39.
Qf4 {[%clk 0:00:02.3]} 39... Ng6 {[%clk 0:00:04.8]} 40. Qg4 {[%clk 0:00:01.7]}
40... Qc4 {[%clk 0:00:05.2]} 41. Red1 {[%clk 0:00:01.4]} 41... h5 {[%clk
0:00:05]} 42. Qxh5 {[%clk 0:00:01.3]} 42... Qxd4 {[%clk 0:00:05.1]} 43. Rdc1
{[%clk 0:00:01.2]} 43... Rc3 {[%clk 0:00:05.3]} 44. Rd1 {[%clk 0:00:01.3]} 44...
Qc5 {[%clk 0:00:05.3]} 45. Re1 {[%clk 0:00:01.2]} 45... Rc2 {[%clk 0:00:05.7]}
0-1